Cogmind - Beta 15 @@@ ROGUE MODE // 2025.08.23 @ 15:54:21 Player: skye Result: Destroyed by G-34 Mercenary with Small Laser Performance ------------- Evolutions (1) 500 Regions Visited (3) 600 Robots Destroyed (17) 85 Value Destroyed (483) 483 Prototype IDs (0) 0 Alien Tech Used (0) 0 Bonus (167) 167 TOTAL SCORE: 1835 Bonus ------- Follower Combat Kills 167 Cogmind --------- Core Integrity 0/400 Matter 231/300 Energy 350/350 System Corruption 1% Temperature Cool (6) Movement Core (350) Ox6 Location -9/Materials Parts ------- > --- POWER (2) -------- (None) > --- PROPULSION (2) --- (None) > --- UTILITY (3) ------ Medium Storage Unit High-capacity Battery > --- WEAPON (2) ------- Light Cannon Light Cannon > --- INVENTORY (10) --- Disposable Heat Sink Peak State ------------ > --- POWER ------------ Ion Engine Light Ion Engine > --- PROPULSION ------- Aluminum Leg Aluminum Leg > --- UTILITY ---------- Small Storage Unit High-capacity Battery Shield Generator > --- WEAPON ----------- Medium Laser Assault Rifle > --- INVENTORY -------- Ion Engine Compact Wheel Compact Wheel Disposable Heat Sink Targeting Computer Particle Gun Light Assault Rifle Grenade Launcher [Rating: 11] Favorites ----------- Power Light Ion Engine Engine Light Ion Engine Propulsion Aluminum Leg Leg Aluminum Leg Wheel Compact Wheel Utility High-capacity Battery Device Shield Generator Storage High-capacity Battery Processor Targeting Computer Weapon Medium Laser Energy Gun Medium Laser Ballistic Gun Assault Rifle Ballistic Cannon Light Cannon Launcher Grenade Launcher Build | -11 -10 -10 -9 ------- Run | Yrd Mat Min Mat Slots Evolved 2 | . . . 2 Power 1 | . . . 1 Propulsion . | . . . . Utility 1 | . . . 1 Weapon . | . . . . Parts Attached 17 | . 2 2 13 Power 3 | . . 1 2 Engine 3 | . . 1 2 Core . | . . . . Reactor . | . . . . Propulsion 3 | . . . 3 Treads . | . . . . Leg 2 | . . . 2 Wheel 1 | . . . 1 Hover . | . . . . Flight . | . . . . Utility 5 | . 1 . 4 Device 2 | . . . 2 Storage 2 | . 1 . 1 Processor 1 | . . . 1 Hackware . | . . . . Protection . | . . . . Artifact . | . . . . Weapon 6 | . 1 1 4 Energy Gun 1 | . . . 1 Energy Cannon . | . . . . Ballistic Gun 2 | . . 1 1 Ballistic Cannon 2 | . . . 2 Launcher 1 | . 1 . . Special Weapon . | . . . . Impact Weapon . | . . . . Slashing Weapon . | . . . . Piercing Weapon . | . . . . Special Melee Weapon . | . . . . Unidentified Prototypes . | . . . . Parts Lost 15 | . 1 . 14 Power 4 | . 1 . 3 Propulsion 4 | . . . 4 Utility 2 | . . . 2 Weapon 5 | . . . 5 Highest Loss Streak 10 | . 1 . 10 To Critical Strikes . | . . . . Average Backups 6 | . 7 6 5 Power 1 | . 1 1 . Propulsion 2 | . 4 2 1 Utility 1 | . . . 1 Weapon 2 | . 1 2 1 Tool/Special . | . . . . Unused Backups 2 | . . . 2 Power . | . . . . Propulsion 2 | . . . 2 Utility . | . . . . Weapon . | . . . . Tool/Special . | . . . . Average Slot Usage (%) 88 | . 98 96 73 Engine 10 | . 14 10 10 Leg 23 | . 28 28 16 Device 2 | . . . 7 Storage 24 | . 26 28 19 Energy Gun 11 | . 14 14 7 Ballistic Gun 7 | . 8 7 8 Launcher 4 | . 5 6 1 Peak Build Rating 11 | . 7 7 11 Average Rating 7 | . 6 6 7 On Entrance 6 | 6 6 6 7 Naked Turns . | . . . . Heaviest Build 23 | 12 17 17 23 Greatest Support 20 | 20 20 20 20 Greatest Overweight (x) 6 | . . . 6 Average Overweight (x) . | . . . . Largest Inventory Capacity 10 | . 8 8 10 Average Capacity 8 | . 8 8 8 Most Carried 8 | . 8 7 8 Average Carried 6 | . 7 6 5 Final Capacity 10 | 8 8 8 10 Final Carried 7 | 6 6 7 1 Class Distribution -------------------- 100% | Mutant Dominant Class ---------------- Mutant | -10/Materials Mutant | -10/Mines Mutant | -9/Materials Resources | -11 -10 -10 -9 ----------- Run | Yrd Mat Min Mat Matter Collected 504 | 200 . 114 190 Remotely . | . . . . Salvage Created 434 | . 116 96 222 Parts 26 | . 6 6 14 Haulers Intercepted . | . . . . Recyclers Shooed 3 | . . . 3 Parts Field Recycled . | . . . . Retrieved Matter . | . . . . Parts Self-Destructed . | . . . . Prevented . | . . . . Kills | -11 -10 -10 -9 ------- Run | Yrd Mat Min Mat Combat Hostiles Destroyed 14 | . 4 4 6 Guns 6 | . 1 2 3 AOE 8 | . 3 2 3 Classes Destroyed 5 | . 1 1 3 Worker 1 | . . . 1 Builder 2 | . . . 2 Swarmer 3 | . . 2 1 Grunt 9 | . 4 2 3 Sentry 2 | . . . 2 Best Kill Streak 3 | . 3 2 3 Combat Bots Only 3 | . 3 2 2 Max Kills in Single Turn 3 | . 1 2 3 Gunslinging . | . . . . Exploded 2 | . 1 2 1 Melee . | . . . . Uniques/NPCs Destroyed . | . . . . Combat | -11 -10 -10 -9 -------- Run | Yrd Mat Min Mat Hostile Shots Fired 190 | . 19 19 152 Missed 56 | . 9 6 41 Hits 134 | . 10 13 111 Projectile 134 | . 10 13 111 Critical Strikes 2 | . . . 2 Damage Taken 1618 | . 106 148 1364 Core 484 | . 23 52 409 Absorbed by Shields 61 | . . . 61 Core Remaining (%) 85 | 100 . 70 . Volleys Fired 84 | . 18 7 59 Largest 2 | . 2 2 2 Hottest 85 | . 70 70 85 Shots Fired 115 | . 23 12 80 Gun 96 | . 20 11 65 Cannon 8 | . . . 8 Launcher 11 | . 3 1 7 Special . | . . . . Kinetic 63 | . 5 5 53 Thermal 41 | . 15 6 20 Explosive 11 | . 3 1 7 Electromagnetic . | . . . . Robot Hit Streak 10 | . 8 7 10 Robot Miss Streak 4 | . 3 2 4 Penetration Max . | . . . . Secondary Targets . | . . . . Shots Hit Robots 67 | . 14 9 44 Core Hits 41 | . 9 7 25 Critical Kills . | . . . . Critical Parts Destroyed . | . . . . Critical Strikes 6 | . 3 . 3 Burn 6 | . 3 . 3 Melee Attacks . | . . . . Impact . | . . . . Slashing . | . . . . Piercing . | . . . . Sneak Attacks . | . . . . Combat Hostiles . | . . . . Follow-up Attacks . | . . . . Damage Inflicted 1630 | . 324 186 1120 Guns 647 | . 132 105 410 Cannons 66 | . . . 66 Explosions 873 | . 192 73 608 Melee . | . . . . Ramming 44 | . . 8 36 Kinetic 377 | . 33 56 288 Thermal 336 | . 99 49 188 Explosive 873 | . 192 73 608 Electromagnetic . | . . . . Impact . | . . . . Slashing . | . . . . Piercing . | . . . . Highest Corruption 1 | . . . 1 Average Corruption 1 | . . . 1 Corruption Purged . | . . . . Corruption Blocked . | . . . . Effects 1 | . . . 1 Alerts 1 | . . . 1 Overload Shots . | . . . . Overflow Damage 1 | . . . 1 Projectiles . | . . . . Explosions 1 | . . . 1 Melee . | . . . . Knockbacks 5 | . . . 5 Impact . | . . . . Kinetic 3 | . . . 3 Secondary 2 | . . . 2 Self-Inflicted Damage 26 | . . . 26 Shots 1 | . . . 1 Rammed 12 | . . . 12 Targets Rammed 14 | . . 2 12 Kicked 2 | . . 2 . Crushed . | . . . . Highest Temperature 278 | . 66 27 278 Average Temperature 53 | . 23 10 79 Received Heat Transfer 815 | . 54 57 704 Siege Activations . | . . . . Martial Activations . | . . . . Shielding Activations . | . . . . Robots Disrupted . | . . . . Combat Hostiles . | . . . . Robots Corrupted . | . . . . Combat Hostiles . | . . . . Parts Fried . | . . . . Impact Corruptions . | . . . . Robots Melted . | . . . . Combat Hostiles . | . . . . Parts Melted 2 | . 2 . . Heat Transferred 1443 | . 518 148 777 Parts Sabotaged . | . . . . Parts Stolen . | . . . . Parts Stripped . | . . . . Power Chain Reactions . | . . . . Alert | -11 -10 -10 -9 ------- Run | Yrd Mat Min Mat Maximum Alert Level 1 | . . . 1 Low Security (%) 92 | . 100 100 79 Level 1 7 | . . . 20 Level 2 . | . . . . Level 3 . | . . . . Level 4 . | . . . . Level 5 . | . . . . High Security . | . . . . Max Security . | . . . . Peak Influence 304 | . 120 99 304 Initial 39 | . . 39 8 Average 52 | . 41 32 86 Influence Increases 996 | . 155 255 586 Destroy 0b10 Robot/C 500 | . 80 160 260 Destroy 0b10 Robot/NC 15 | . . . 15 Destroy Leader 130 | . 20 30 80 Allied During Kill 121 | . . 57 64 Successful Hack 9 | . 5 . 4 Disable Machine 30 | . 15 . 15 Destroy Structure 71 | . 20 8 43 Lose Combat Pursuer 120 | . 15 . 105 Influence Decreases 976 | . 55 332 589 Entered New Map 76 | . . 61 15 Time Decay 520 | . 45 271 204 Lost Part 150 | . 10 . 140 Lost Ally 80 | . . . 80 Purge Threat 150 | . . . 150 Squads Dispatched 6 | . 2 . 4 Investigation 3 | . 2 . 1 Extermination . | . . . . Reinforcement 3 | . . . 3 Assault . | . . . . Garrison . | . . . . Intercept . | . . . . Searches Triggered . | . . . . Construction Impeded 1 | . . . 1 Haulers Reinforced . | . . . . Active Scanning Responses . | . . . . Cargo Convoy Interrupts . | . . . . Stealth | -11 -10 -10 -9 --------- Run | Yrd Mat Min Mat Distress Signals 2 | . 1 . 1 Communications Jammed . | . . . . Distress Signals . | . . . . Times Spotted 42 | . 8 8 26 Peak Tracking Total 6 | . 5 3 6 Tactical Retreats 5 | . 1 . 4 Traps | -11 -10 -10 -9 ------- Run | Yrd Mat Min Mat Traps Triggered 3 | . 2 . 1 Indirectly . | . . . . Trap Hack Attempts . | . . . . Triggered . | . . . . Disarmed . | . . . . Reprogrammed . | . . . . Reused . | . . . . Traps Extracted . | . . . . Installed . | . . . . Triggered . | . . . . Machines | -11 -10 -10 -9 ---------- Run | Yrd Mat Min Mat Machines Disabled 2 | . 1 . 1 Max in Single Turn 1 | . 1 . . Machines Repaired . | . . . . Machines Dismantled . | . . . . Machines Sabotaged . | . . . . Overloaded Fab Kills . | . . . . Hacking | -11 -10 -10 -9 --------- Run | Yrd Mat Min Mat Machines Accessed 6 | . 1 . 5 Terminals 5 | . 1 . 4 Fabricators . | . . . . Repair Stations . | . . . . Recycling Units 1 | . . . 1 Scanalyzers . | . . . . Garrison Access . | . . . . Total Hacks 16 | . 1 . 15 Successful 13 | . 1 . 12 Failed 3 | . . . 3 Catastrophic 1 | . . . 1 Database Lockouts . | . . . . Manual 12 | . 3 . 9 Terminals 15 | . 1 . 14 Fabricators . | . . . . Repair Stations . | . . . . Recycling Units 1 | . . . 1 Scanalyzers . | . . . . Garrison Access . | . . . . Terminal Hacks 7 | . . . 7 Terminal Index 1 | . . . 1 Alert Level 3 | . . . 3 Unreport Threat 1 | . . . 1 Locate Traps 1 | . . . 1 Zone Layout 1 | . . . 1 Fabricator Hacks . | . . . . Repair Station Hacks . | . . . . Recycling Unit Hacks 1 | . . . 1 Report Inventory 1 | . . . 1 Scanalyzer . | . . . . Garrison Access Hacks . | . . . . Unauthorized Hacks 5 | . 1 . 4 Terminals 5 | . 1 . 4 Botnet 5 | . 1 . 4 Fabricators . | . . . . Repair Stations . | . . . . Recycling Units . | . . . . Scanalyzers . | . . . . Garrison Access . | . . . . Data Cores Recovered . | . . . . Used . | . . . . Hacking Detections 4 | . . . 4 Full Trace Events . | . . . . Feedback Events . | . . . . Feedback Blocked . | . . . . Robot Schematics Acquired . | . . . . Robots Built . | . . . . Authchips . | . . . . Time . | . . . . Total Robot Build Rating . | . . . . Part Schematics Acquired . | . . . . Parts Built . | . . . . Authchips . | . . . . Time . | . . . . Total Part Build Rating . | . . . . Parts Repaired . | . . . . Time . | . . . . Parts Recycled . | . . . . Recycled Matter . | . . . . Retrieved Matter . | . . . . Retrieved Components . | . . . . Parts Scanalyzed . | . . . . Part Schematics Acquired . | . . . . Parts Damaged . | . . . . Bothacking | -11 -10 -10 -9 ------------ Run | Yrd Mat Min Mat Used RIF Installer . | . . . . Robots Hacked . | . . . . Non-combat . | . . . . Combat . | . . . . Robot Hacks Applied . | . . . . Relay Couplers Released . | . . . . Fabnet Peak Effective % . | . . . . Robots Rewired . | . . . . Allies Hacked . | . . . . Hacks Repelled . | . . . . Allies | -11 -10 -10 -9 -------- Run | Yrd Mat Min Mat Total Allies 5 | . . 5 . Largest Group 5 | . . 5 5 Highest-Rated Group 95 | . . 95 95 Highest-Rated Ally 31 | . . 31 31 Total Orders . | . . . . Ally Attacks 52 | . . 12 40 Total Damage 632 | . . 98 534 Kills 12 | . . 4 8 Allies Corrupted . | . . . . Allies Melted . | . . . . Intel | -11 -10 -10 -9 ------- Run | Yrd Mat Min Mat Active Infowar (turns) . | . . . . Robot Analysis Total . | . . . . Derelict Logs Recovered 1 | . . 1 . Drone Launches . | . . . . Drone Recoveries . | . . . . Exploration | -11 -10 -10 -9 ------------- Run | Yrd Mat Min Mat Turns Passed 1671 | . 174 918 579 Spaces Moved 1181 | 1 106 737 337 Core 64 | . . . 64 Treads . | . . . . Legs 1059 | 1 106 737 215 Wheels 58 | . . . 58 Hover . | . . . . Flight . | . . . . Fastest Speed 50 | 120 120 120 50 Average Speed 119 | 120 120 120 116 Slowest Speed 350 | 120 120 120 350 Overloaded Moves . | . . . . Propulsion Burnouts . | . . . . Robots Hopped . | . . . . Potential Cave-ins . | . . . . Cave-ins Triggered . | . . . . Exploration Rate (%) 40 | 2 27 95 38 Regions Visited 3 Branch Regions 1 Pre-discovered Areas 1 | . . 1 . Known Exits Taken . | . . . . Unknown Exits Taken 3 | 1 1 1 . Scrap Searched 1 | . . 1 . Spaces Dug . | . . . . Terrain Destroyed 69 | . 22 8 39 Melee . | . . . . Projectile . | . . . . AOE 69 | . 22 8 39 Terrain Rammed . | . . . . Walls Destroyed . | . . . . Machines Disabled . | . . . . Actions | -11 -10 -10 -9 --------- Run | Yrd Mat Min Mat Total 1332 | . 130 757 445 Wait 15 | . . 7 8 Move 1178 | . 105 736 337 Hop . | . . . . Pick Up 8 | . 3 2 3 Fast Attach 5 | . . . 5 Attach 12 | . 1 1 10 Detach 3 | . . . 3 Swap 7 | . 1 2 4 Drop 6 | . 2 . 4 Fire 84 | . 18 7 59 Melee . | . . . . Ram 12 | . . . 12 Kick 2 | . . 2 . Crush . | . . . . Escape Stasis . | . . . . Rewire . | . . . . Trap . | . . . . Miscellaneous . | . . . . Route ------- -11/Scrapyard -10/Materials -10/Mines (discovered 2 exits: *Mat / [*Sub]) -9/Materials History --------- Turn | Location | Event 1 | -11/Scrapyard | Discovered new exit (range 0) 1 | -11/Scrapyard | Entered Materials 164 | -10/Materials | Discovered new exit (range 7) 175 | -10/Materials | Entered Mines 190 | -10/Mines | Discovered new exit (range 8) 246 | -10/Mines | Assisted by bots powering up and referring to "LRC-V3" 301 | -10/Mines | Build established: Mutant 370 | -10/Mines | Learned location of Zion (-7) 1069 | -10/Mines | Discovered new exit (range 6) 1093 | -10/Mines | Entered Materials 1093 | -9/Materials | Accompanied by 5 allies 1093 | -9/Materials | Evolved 2 slots: Power x1, Utility x1 1098 | -9/Materials | Led the pair of lost Derelicts to an unsafe place 1450 | -9/Materials | Lost 4 allies 1472 | -9/Materials | Core integrity fell below 50% 1497 | -9/Materials | Lost 10 parts (2p2n2u4w) 1635 | -9/Materials | Core integrity fell below 20% 1669 | -9/Materials | Lost 3 parts (1p2n) 1672 | -9/Materials | Destroyed by G-34 Mercenary with Small Laser Last Messages --------------- 01605_ Disposable Heat Sink broken. 01605_ Destabilizing: Short circuit. 01606_ Slammed into A-02 Transporter. 01607_ Slammed into T-07 Excavator. 01611_ Slammed into A-02 Transporter. 01624_ C-30 ARC bursts open, deploying its payload. 01624_ G-47 Trooper unfolds itself. 01624_ G-34 Mercenary unfolds itself. 01625_ Slammed into G-47 Trooper. 01627_ Acquired 119 matter. 01628_ Com. Wheel destroyed. 01636_ Aluminum Leg destroyed. 01638_ Ion Engine destroyed. 01644_ Slammed into A-02 Transporter. 01656_ Acquired Lgt. Cannon. 01660_ System corrupted: IFF burst signal emitted. 01661_ Acquired Lgt. Cannon. 01662_ G-47 Trooper knocked back. Map ----- +----------------------------------------------------+ | | | | | | | | | | | | | | | | | | | | | ?????????????????????????????????????????????????? | | ?????????????????????????????????????????????????? | | ?############????????????????????????????????????? | | ##! #???#######??????????????????????????? | | #! ##### #??????????????????????????? | | #! ####################?####### | | #! " ## | | # ################## ## | | ##! ##### #????????????????# ## | | ?#### #???## ##############??????# ## | | ???#####+#/#######+#### """ #####?## ## | | ???# ## """ # ### # | | ???# """ """ ## """ # ##T + | | ???# """"""""" ## # ### # | | ???# """"" " ## !] # #?# # | | ???# ## !@ # #?# ######## | | ???# ## ] # #?# ## | | ???# ## # ### ## | | ???########################g######+### # | | ????????????? gg " " # | | ????????????? " + = | | ????????????? # %! | | ??????????????######################## # % ! | | ?????????????????????????????????????##^ ^##[%! | | ??????????????????????????????????????# # =! | | ??????????????????????????????????????# ### " ## | | ??????????????????????????????????????# #?## ##? | | ??????????????????????????????????????# #??# #?? | | ??????????????????????????????????????# #??# #?# | | ??????????????????????????????????????# #??# #? | | ?????????????????????????????????????? ### #? | | ?????????????????????????????????????? # # ## | | ????????????????????????????????????? !### # | | ????????????????????????????????????? [ ##=! | | ????????????????????????????????????## % ## = | | ??????????????????????????????????????#####%#* # | | ??????????????????????????????????####### ## [=# | | ??????????????????????????????????# # | | ??????????????????????????????????# # # | | ??????????????????????????????????# # # | +----------------------------------------------------+ Best States ------------- Heat Dissipation 28 Coolant Potential 50 Energy Generation 15 Energy Capacity 525 Matter Stores 300 Matter Capacity 300 Sight Range 16 Terrain Scan Density 10 Evasion (%) 55 Targeting Accuracy 5 Item Schematics ----------------- None Robot Schematics ------------------ None Fabricated ------------ Nothing Repaired ---------- Nothing Alien Tech Used ----------------- None Achievements -------------- None Challenges ------------ None Game ------ Seed CarbidePointShearcannon Manual? 0 Play Time 00:14:20 Cumulative 88.4 hours Start 2025.08.23 @ 15:42:21 End 2025.08.23 @ 15:54:21 Sessions 1 Manual Loads 0 Difficulty Rogue Special Mode None Game No. 112 Rogue 68 Adventurer 44 Explorer 0 Win Type - Total 0 Types 0/0/0/0/0/0/0/0/0/0 Lore% 22 Gallery% 45 Achievement% 39 Wizard Run 0 Options --------- Layout 1 ASCII 0 Keyboard 1 Movement Vi Keybinds 0 Fullscreen 1 Font 24/Terminus Map View 50x35 Zoom Use 0% Tactical HUD 1 Map Filters NONE Filters NONE Steam 1 RUN: 784eef8b-744d-4822-bb5b-9a8552b3c5e6